[Event "Early-Titled-Tuesday-Blitz-July-09-2024"]
[Site "Chess.com"]
[Date "2024.07.09"]
[Round "5"]
[White "IC3S2"]
[Black "Yaacovn"]
[Result "0-1"]
[WhiteElo "2548"]
[BlackElo "2788"]
[TimeControl "180+1"]
[EndTime "8:56:53 PDT"]
[Termination "Yaacovn won by checkmate"]

1. e4 {[%clk 0:03:00.9]} 1... c6 {[%clk 0:02:49.4]} 2. d4 {[%clk 0:03:00.5]}
2... d5 {[%clk 0:02:42.2]} 3. exd5 {[%clk 0:03:01.4]} 3... cxd5 {[%clk
0:02:37.9]} 4. Bd3 {[%clk 0:03:01.9]} 4... Nf6 {[%clk 0:02:36.1]} 5. c3 {[%clk
0:03:02.2]} 5... Nc6 {[%clk 0:02:34.1]} 6. Bf4 {[%clk 0:03:02.3]} 6... Bg4
{[%clk 0:02:32.6]} 7. Qb3 {[%clk 0:03:02.6]} 7... Qd7 {[%clk 0:02:32.3]} 8. Nd2
{[%clk 0:03:03.2]} 8... e6 {[%clk 0:02:32.5]} 9. Ngf3 {[%clk 0:03:03.9]} 9...
Bd6 {[%clk 0:02:32.6]} 10. Bxd6 {[%clk 0:03:04]} 10... Qxd6 {[%clk 0:02:33.5]}
11. O-O {[%clk 0:03:04.1]} 11... O-O {[%clk 0:02:33.9]} 12. Rae1 {[%clk
0:03:04.6]} 12... Rab8 {[%clk 0:02:34.4]} 13. Ne5 {[%clk 0:03:02.4]} 13... b5
{[%clk 0:02:33.6]} 14. Qc2 {[%clk 0:02:59.8]} 14... Bh5 {[%clk 0:02:33.4]} 15.
h4 {[%clk 0:02:28.7]} 15... b4 {[%clk 0:02:27.1]} 16. f4 {[%clk 0:02:16.8]}
16... bxc3 {[%clk 0:02:25.1]} 17. bxc3 {[%clk 0:02:16.8]} 17... Rfc8 {[%clk
0:02:24.8]} 18. Qa4 {[%clk 0:01:57.1]} 18... Bg6 {[%clk 0:02:13.1]} 19. Bxg6
{[%clk 0:01:54.7]} 19... hxg6 {[%clk 0:02:12.9]} 20. Nb3 {[%clk 0:01:38.6]}
20... Ne4 {[%clk 0:02:09.2]} 21. Re3 {[%clk 0:01:33.8]} 21... Nxe5 {[%clk
0:02:07.3]} 22. fxe5 {[%clk 0:01:33.2]} 22... Qe7 {[%clk 0:01:58.7]} 23. Qa5
{[%clk 0:01:22.2]} 23... Qc7 {[%clk 0:01:49.7]} 24. Qa3 {[%clk 0:00:33.7]} 24...
Rf8 {[%clk 0:01:40.4]} 25. Rc1 {[%clk 0:00:27.2]} 25... Qd8 {[%clk 0:01:35.6]}
26. c4 {[%clk 0:00:25.8]} 26... Qxh4 {[%clk 0:01:33.9]} 27. Rc2 {[%clk
0:00:18.2]} 27... dxc4 {[%clk 0:01:28.5]} 28. Nc5 {[%clk 0:00:17.4]} 28... Rb1+
{[%clk 0:01:27.8]} 29. Rc1 {[%clk 0:00:17]} 29... Qf2+ {[%clk 0:01:24.6]} 30.
Kh2 {[%clk 0:00:09.2]} 30... Rb2 {[%clk 0:01:15.8]} 31. Rg1 {[%clk 0:00:02.3]}
31... Qf4+ {[%clk 0:01:07.4]} 32. Kh1 {[%clk 0:00:02.2]} 32... Nf2# {[%clk
0:01:07.5]} 0-1

[Event "Early-Titled-Tuesday-Blitz-July-09-2024"]
[Site "Chess.com"]
[Date "2024.07.09"]
[Round "5"]
[White "SHIVACalypso"]
[Black "Mikasinski"]
[Result "0-1"]
[WhiteElo "2500"]
[BlackElo "2698"]
[TimeControl "180+1"]
[EndTime "8:56:55 PDT"]
[Termination "Mikasinski won by resignation"]

1. Nf3 {[%clk 0:02:58.8]} 1... Nf6 {[%clk 0:02:59.9]} 2. c4 {[%clk 0:02:58.1]}
2... e6 {[%clk 0:03:00.2]} 3. g3 {[%clk 0:02:38.3]} 3... d5 {[%clk 0:03:00.1]}
4. cxd5 {[%clk 0:02:32.9]} 4... exd5 {[%clk 0:02:57.4]} 5. Bg2 {[%clk 0:02:31]}
5... d4 {[%clk 0:02:56.7]} 6. O-O {[%clk 0:02:26.7]} 6... Be7 {[%clk 0:02:55]}
7. d3 {[%clk 0:02:22.3]} 7... O-O {[%clk 0:02:54.3]} 8. e3 {[%clk 0:02:16.9]}
8... dxe3 {[%clk 0:02:53.9]} 9. Bxe3 {[%clk 0:02:17.8]} 9... Nc6 {[%clk
0:02:50]} 10. d4 {[%clk 0:02:17.6]} 10... Nd5 {[%clk 0:02:46.7]} 11. Nc3 {[%clk
0:02:14.2]} 11... Nxe3 {[%clk 0:02:44.3]} 12. fxe3 {[%clk 0:02:12]} 12... Re8
{[%clk 0:02:30]} 13. d5 {[%clk 0:02:00.6]} 13... Nb4 {[%clk 0:02:25.8]} 14. a3
{[%clk 0:01:54.2]} 14... Na6 {[%clk 0:02:23.8]} 15. e4 {[%clk 0:01:53.7]} 15...
Bf6 {[%clk 0:01:59.8]} 16. e5 {[%clk 0:01:44]} 16... Bxe5 {[%clk 0:01:58.9]} 17.
Nxe5 {[%clk 0:01:44.9]} 17... Rxe5 {[%clk 0:01:57.5]} 18. Qd4 {[%clk 0:01:43.6]}
18... Qd6 {[%clk 0:01:37.7]} 19. Ne4 {[%clk 0:01:37]} 19... Qb6 {[%clk
0:01:28.7]} 20. Qxb6 {[%clk 0:01:26.7]} 20... axb6 {[%clk 0:01:29.5]} 21. d6
{[%clk 0:01:25.4]} 21... Bf5 {[%clk 0:01:27.2]} 22. Rxf5 {[%clk 0:00:57.5]}
22... Rxf5 {[%clk 0:01:26.8]} 23. d7 {[%clk 0:00:55.8]} 23... Rd8 {[%clk
0:01:26]} 24. Rd1 {[%clk 0:00:49.2]} 24... Nb8 {[%clk 0:01:20.8]} 25. Bh3 {[%clk
0:00:47.7]} 25... Re5 {[%clk 0:01:20.5]} 26. Nf2 {[%clk 0:00:22.4]} 26... Re7
{[%clk 0:01:19.4]} 27. Rc1 {[%clk 0:00:19.3]} 27... c6 {[%clk 0:01:16]} 28. Rd1
{[%clk 0:00:18.5]} 28... Nxd7 {[%clk 0:01:15.9]} 29. Ng4 {[%clk 0:00:17.2]}
29... Rde8 {[%clk 0:01:12.1]} 0-1

[Event "Early-Titled-Tuesday-Blitz-July-09-2024"]
[Site "Chess.com"]
[Date "2024.07.09"]
[Round "5"]
[White "Sam_ChessMood"]
[Black "DenLaz"]
[Result "0-1"]
[WhiteElo "2930"]
[BlackElo "3151"]
[TimeControl "180+1"]
[EndTime "8:56:58 PDT"]
[Termination "DenLaz won on time"]

1. d4 {[%clk 0:02:58.2]} 1... Nf6 {[%clk 0:02:59.8]} 2. c4 {[%clk 0:02:57.8]}
2... e6 {[%clk 0:03:00.4]} 3. Nf3 {[%clk 0:02:57.7]} 3... d5 {[%clk 0:03:00.8]}
4. Nc3 {[%clk 0:02:57.8]} 4... Be7 {[%clk 0:03:01]} 5. Bf4 {[%clk 0:02:33.3]}
5... O-O {[%clk 0:03:00.9]} 6. e3 {[%clk 0:02:33.4]} 6... Nbd7 {[%clk
0:03:01.6]} 7. c5 {[%clk 0:02:32.6]} 7... c6 {[%clk 0:03:01.6]} 8. h3 {[%clk
0:02:30.8]} 8... b6 {[%clk 0:03:01.9]} 9. b4 {[%clk 0:02:31]} 9... a5 {[%clk
0:03:02.4]} 10. a3 {[%clk 0:02:31.5]} 10... Ba6 {[%clk 0:03:02.9]} 11. Bxa6
{[%clk 0:02:28]} 11... Rxa6 {[%clk 0:03:03.8]} 12. O-O {[%clk 0:02:28.4]} 12...
Qa8 {[%clk 0:03:04.5]} 13. Rb1 {[%clk 0:02:28.4]} 13... axb4 {[%clk 0:03:03.1]}
14. axb4 {[%clk 0:02:28.2]} 14... Qb7 {[%clk 0:03:03.7]} 15. Qc2 {[%clk
0:02:27]} 15... h6 {[%clk 0:02:58.1]} 16. Rfc1 {[%clk 0:02:15.1]} 16... b5
{[%clk 0:02:58.2]} 17. Ra1 {[%clk 0:01:55.3]} 17... Rfa8 {[%clk 0:02:57.3]} 18.
Qb2 {[%clk 0:01:53.7]} 18... Ne4 {[%clk 0:02:43.9]} 19. Nxe4 {[%clk 0:01:47.6]}
19... dxe4 {[%clk 0:02:44.1]} 20. Nd2 {[%clk 0:01:47.6]} 20... Nf6 {[%clk
0:02:44.3]} 21. Be5 {[%clk 0:01:42.2]} 21... Rxa1 {[%clk 0:02:23.3]} 22. Rxa1
{[%clk 0:01:41.7]} 22... Nd5 {[%clk 0:02:23.4]} 23. Rxa8+ {[%clk 0:01:16]} 23...
Qxa8 {[%clk 0:02:22.6]} 24. Nxe4 {[%clk 0:01:14.7]} 24... Qa4 {[%clk 0:02:22.9]}
25. Bd6 {[%clk 0:01:08.9]} 25... Bd8 {[%clk 0:02:18]} 26. Nc3 {[%clk 0:00:45.2]}
26... Qxb4 {[%clk 0:02:16.6]} 27. Qxb4 {[%clk 0:00:45.2]} 27... Nxb4 {[%clk
0:02:17.5]} 28. e4 {[%clk 0:00:31.1]} 28... Bf6 {[%clk 0:02:05.6]} 29. e5 {[%clk
0:00:20.2]} 29... Bg5 {[%clk 0:02:04.8]} 30. Kf1 {[%clk 0:00:15.3]} 30... Bc1
{[%clk 0:01:35.1]} 31. Ke2 {[%clk 0:00:14.5]} 31... Bb2 {[%clk 0:01:35.3]} 32.
Kd2 {[%clk 0:00:08.7]} 32... Bxc3+ {[%clk 0:01:35.5]} 33. Kxc3 {[%clk
0:00:09.6]} 33... Nd5+ {[%clk 0:01:36.4]} 34. Kd3 {[%clk 0:00:10.2]} 34... Nf4+
{[%clk 0:01:26.5]} 35. Ke4 {[%clk 0:00:09.9]} 35... Nxg2 {[%clk 0:01:27.2]} 36.
Be7 {[%clk 0:00:04.1]} 36... g5 {[%clk 0:01:23.6]} 0-1

[Event "Early-Titled-Tuesday-Blitz-July-09-2024"]
[Site "Chess.com"]
[Date "2024.07.09"]
[Round "5"]
[White "Navyblue1"]
[Black "Caleb_Klenoff"]
[Result "0-1"]
[WhiteElo "2125"]
[BlackElo "2386"]
[TimeControl "180+1"]
[EndTime "8:56:58 PDT"]
[Termination "Caleb_Klenoff won on time"]

1. d4 {[%clk 0:02:11.8]} 1... Nf6 {[%clk 0:02:59.5]} 2. c4 {[%clk 0:02:09.2]}
2... c5 {[%clk 0:02:59.7]} 3. d5 {[%clk 0:02:07.3]} 3... e6 {[%clk 0:03:00.3]}
4. Nc3 {[%clk 0:02:06.3]} 4... exd5 {[%clk 0:03:00.1]} 5. cxd5 {[%clk
0:02:07.2]} 5... d6 {[%clk 0:03:00.6]} 6. e4 {[%clk 0:02:07.1]} 6... g6 {[%clk
0:03:01.4]} 7. f4 {[%clk 0:02:03.7]} 7... Bg7 {[%clk 0:03:02]} 8. Bb5+ {[%clk
0:02:02.7]} 8... Nfd7 {[%clk 0:03:02.7]} 9. a4 {[%clk 0:02:00.4]} 9... O-O
{[%clk 0:03:02.8]} 10. Nf3 {[%clk 0:01:59.2]} 10... Na6 {[%clk 0:03:03.3]} 11.
O-O {[%clk 0:01:57.9]} 11... Nb4 {[%clk 0:03:04]} 12. Re1 {[%clk 0:01:52.8]}
12... a6 {[%clk 0:03:04.5]} 13. Bc4 {[%clk 0:01:44.5]} 13... Re8 {[%clk
0:03:00.3]} 14. Be3 {[%clk 0:01:08]} 14... Nb6 {[%clk 0:02:52.5]} 15. Bf1 {[%clk
0:01:04.8]} 15... a5 {[%clk 0:02:53]} 16. Bf2 {[%clk 0:01:02.7]} 16... Bg4
{[%clk 0:02:43.3]} 17. Rc1 {[%clk 0:00:47.4]} 17... Bxf3 {[%clk 0:02:35]} 18.
Qxf3 {[%clk 0:00:36.2]} 18... c4 {[%clk 0:02:32.3]} 19. Qe3 {[%clk 0:00:26.6]}
19... Ra6 {[%clk 0:02:21.7]} 20. Qd2 {[%clk 0:00:19.2]} 20... Qd7 {[%clk
0:02:13.8]} 21. Qd1 {[%clk 0:00:18.9]} 21... Rc8 {[%clk 0:02:08]} 22. h3 {[%clk
0:00:12.9]} 22... h5 {[%clk 0:02:00.1]} 23. Be2 {[%clk 0:00:10.1]} 23... Re8
{[%clk 0:01:28.5]} 24. Bxb6 {[%clk 0:00:08.7]} 24... Rxb6 {[%clk 0:01:28.4]} 25.
Bxc4 {[%clk 0:00:08.1]} 25... h4 {[%clk 0:01:10.1]} 26. Bb5 {[%clk 0:00:07.1]}
26... Rxb5 {[%clk 0:01:10.6]} 27. Nxb5 {[%clk 0:00:05.2]} 27... Bxb2 {[%clk
0:01:09.1]} 28. Rc7 {[%clk 0:00:04.4]} 28... Qd8 {[%clk 0:01:09.6]} 29. Qc2
{[%clk 0:00:02.6]} 29... Nxc2 {[%clk 0:01:06.1]} 30. Rxc2 {[%clk 0:00:01.7]}
30... Qb6+ {[%clk 0:01:06.2]} 31. Kh1 {[%clk 0:00:01.3]} 31... Bg7 {[%clk
0:01:05.6]} 0-1

[Event "Early-Titled-Tuesday-Blitz-July-09-2024"]
[Site "Chess.com"]
[Date "2024.07.09"]
[Round "5"]
[White "Chessdude1987"]
[Black "Fandorine"]
[Result "0-1"]
[WhiteElo "2333"]
[BlackElo "2909"]
[TimeControl "180+1"]
[EndTime "8:57:01 PDT"]
[Termination "Fandorine won on time"]

1. e4 {[%clk 0:03:00.9]} 1... c5 {[%clk 0:02:57.1]} 2. Nf3 {[%clk 0:03:01.2]}
2... g6 {[%clk 0:02:56.1]} 3. d4 {[%clk 0:02:58.5]} 3... cxd4 {[%clk 0:02:57]}
4. c3 {[%clk 0:02:53.9]} 4... d3 {[%clk 0:02:55.4]} 5. c4 {[%clk 0:02:52.4]}
5... Bg7 {[%clk 0:02:55.3]} 6. Bxd3 {[%clk 0:02:52.4]} 6... Nc6 {[%clk
0:02:55.9]} 7. O-O {[%clk 0:02:50.7]} 7... d6 {[%clk 0:02:56.5]} 8. h3 {[%clk
0:02:50.5]} 8... Nf6 {[%clk 0:02:54.6]} 9. Nc3 {[%clk 0:02:50.1]} 9... O-O
{[%clk 0:02:55.2]} 10. Be3 {[%clk 0:02:47.7]} 10... b6 {[%clk 0:02:52]} 11. Rc1
{[%clk 0:02:41.8]} 11... Bb7 {[%clk 0:02:52]} 12. Nd5 {[%clk 0:02:41.3]} 12...
Rc8 {[%clk 0:02:50.3]} 13. Qd2 {[%clk 0:02:39.1]} 13... Re8 {[%clk 0:02:49.4]}
14. Rfd1 {[%clk 0:02:37.8]} 14... Nd7 {[%clk 0:02:48.9]} 15. Bh6 {[%clk
0:02:34.9]} 15... Nde5 {[%clk 0:02:38.4]} 16. Nxe5 {[%clk 0:02:26.7]} 16... dxe5
{[%clk 0:02:36]} 17. Bxg7 {[%clk 0:02:05.5]} 17... Kxg7 {[%clk 0:02:35.9]} 18.
h4 {[%clk 0:02:04.7]} 18... e6 {[%clk 0:02:34]} 19. Ne3 {[%clk 0:01:59.3]} 19...
Qxh4 {[%clk 0:02:33.4]} 20. g3 {[%clk 0:01:53.5]} 20... Qg5 {[%clk 0:02:32.6]}
21. Bf1 {[%clk 0:01:49]} 21... Qe7 {[%clk 0:02:28.1]} 22. Ng4 {[%clk 0:01:46.9]}
22... f5 {[%clk 0:02:15.6]} 23. Qh6+ {[%clk 0:01:35.2]} 23... Kh8 {[%clk
0:02:15.3]} 24. Ne3 {[%clk 0:01:20.2]} 24... Nd4 {[%clk 0:02:14]} 25. Bg2 {[%clk
0:00:54.7]} 25... Ne2+ {[%clk 0:02:05.9]} 26. Kf1 {[%clk 0:00:54.6]} 26... Nxc1
{[%clk 0:02:06.5]} 27. Rxc1 {[%clk 0:00:54.7]} 27... Qg7 {[%clk 0:02:06.6]} 28.
Qh4 {[%clk 0:00:43.1]} 28... Red8 {[%clk 0:01:57.6]} 29. exf5 {[%clk 0:00:37.5]}
29... exf5 {[%clk 0:01:50.7]} 30. Bxb7 {[%clk 0:00:22.1]} 30... Qxb7 {[%clk
0:01:51.6]} 31. Ke2 {[%clk 0:00:18.6]} 31... Rd4 {[%clk 0:01:48.3]} 32. Qh6
{[%clk 0:00:09.7]} 32... Qg7 {[%clk 0:01:48.5]} 33. Qg5 {[%clk 0:00:09.1]} 33...
f4 {[%clk 0:01:43.3]} 34. Ng4 {[%clk 0:00:06.9]} 34... fxg3 {[%clk 0:01:40]} 35.
Rh1 {[%clk 0:00:05.9]} 35... g2 {[%clk 0:01:36]} 36. Rg1 {[%clk 0:00:06.1]}
36... Re4+ {[%clk 0:01:33.3]} 37. Kf3 {[%clk 0:00:05.9]} 37... Rexc4 {[%clk
0:01:31]} 38. Rxg2 {[%clk 0:00:05.7]} 38... Rf8+ {[%clk 0:01:31.5]} 39. Ke2
{[%clk 0:00:05.7]} 39... Re4+ {[%clk 0:01:31.3]} 40. Kf1 {[%clk 0:00:05.4]}
40... Qd7 {[%clk 0:01:29.8]} 41. Rh2 {[%clk 0:00:05.5]} 41... Qd1+ {[%clk
0:01:29.4]} 42. Kg2 {[%clk 0:00:02.2]} 42... Rxg4+ {[%clk 0:01:30.3]} 0-1

[Event "Early-Titled-Tuesday-Blitz-July-09-2024"]
[Site "Chess.com"]
[Date "2024.07.09"]
[Round "5"]
[White "Yahisalem"]
[Black "simonachess"]
[Result "0-1"]
[WhiteElo "1960"]
[BlackElo "2310"]
[TimeControl "180+1"]
[EndTime "8:57:01 PDT"]
[Termination "simonachess won by resignation"]

1. e4 {[%clk 0:02:59.7]} 1... c5 {[%clk 0:02:59.3]} 2. Nf3 {[%clk 0:02:57.3]}
2... Nc6 {[%clk 0:02:57.6]} 3. d4 {[%clk 0:02:56.7]} 3... cxd4 {[%clk 0:02:58]}
4. Nxd4 {[%clk 0:02:56.8]} 4... Nf6 {[%clk 0:02:58.5]} 5. Nc3 {[%clk 0:02:56]}
5... e5 {[%clk 0:02:58.1]} 6. Nf3 {[%clk 0:02:54]} 6... Bb4 {[%clk 0:02:57]} 7.
Bg5 {[%clk 0:02:41.9]} 7... h6 {[%clk 0:02:54.5]} 8. Bxf6 {[%clk 0:02:41.3]}
8... Qxf6 {[%clk 0:02:54.1]} 9. Bc4 {[%clk 0:02:38.6]} 9... O-O {[%clk
0:02:50.4]} 10. O-O {[%clk 0:02:38.4]} 10... Bxc3 {[%clk 0:02:50.6]} 11. bxc3
{[%clk 0:02:38.1]} 11... d6 {[%clk 0:02:50.9]} 12. h3 {[%clk 0:02:38]} 12... Kh8
{[%clk 0:02:43.7]} 13. Qe2 {[%clk 0:02:37.7]} 13... Be6 {[%clk 0:02:33.8]} 14.
Bd5 {[%clk 0:02:36]} 14... Bxd5 {[%clk 0:02:32.2]} 15. exd5 {[%clk 0:02:35.7]}
15... Ne7 {[%clk 0:02:32.8]} 16. c4 {[%clk 0:02:35.4]} 16... Rac8 {[%clk
0:02:32.3]} 17. Nd2 {[%clk 0:02:34.7]} 17... Qg6 {[%clk 0:02:28.2]} 18. c3
{[%clk 0:02:14.1]} 18... f5 {[%clk 0:02:26.6]} 19. Rab1 {[%clk 0:02:11.3]} 19...
b6 {[%clk 0:02:25.8]} 20. f4 {[%clk 0:02:00.5]} 20... e4 {[%clk 0:02:25.5]} 21.
Nb3 {[%clk 0:01:54.1]} 21... Qg3 {[%clk 0:02:10.3]} 22. Rbc1 {[%clk 0:01:40.2]}
22... Ng6 {[%clk 0:01:58.9]} 23. Nd4 {[%clk 0:01:35.3]} 23... Nxf4 {[%clk
0:01:56.3]} 24. Rxf4 {[%clk 0:01:20.3]} 24... Qxf4 {[%clk 0:01:55.7]} 25. Rf1
{[%clk 0:01:18.9]} 25... Qe5 {[%clk 0:01:53]} 26. Qd2 {[%clk 0:00:58.6]} 26...
Rf6 {[%clk 0:01:34.2]} 27. Nc6 {[%clk 0:00:55.8]} 27... Rxc6 {[%clk 0:01:25.8]}
28. dxc6 {[%clk 0:00:55.4]} 28... Qc5+ {[%clk 0:01:26.3]} 29. Kh1 {[%clk
0:00:50.8]} 29... Qxc6 {[%clk 0:01:26.1]} 30. Qd5 {[%clk 0:00:48.5]} 30... Qxd5
{[%clk 0:01:25.2]} 31. cxd5 {[%clk 0:00:48.6]} 31... f4 {[%clk 0:01:22.5]} 32.
Kg1 {[%clk 0:00:47.3]} 32... g5 {[%clk 0:01:22.2]} 33. Kf2 {[%clk 0:00:44.2]}
33... Kg7 {[%clk 0:01:22.4]} 34. Re1 {[%clk 0:00:43.7]} 34... e3+ {[%clk
0:01:20.2]} 35. Kf3 {[%clk 0:00:43.8]} 35... Rf7 {[%clk 0:01:20.1]} 36. c4
{[%clk 0:00:43.1]} 36... Kf6 {[%clk 0:01:19.7]} 37. Ke4 {[%clk 0:00:43]} 37...
Re7+ {[%clk 0:01:18]} 38. Kd4 {[%clk 0:00:42.8]} 38... Kf5 {[%clk 0:01:17.3]}
39. a4 {[%clk 0:00:38.7]} 39... h5 {[%clk 0:01:17]} 40. a5 {[%clk 0:00:37.6]}
40... g4 {[%clk 0:01:17.2]} 41. hxg4+ {[%clk 0:00:35.9]} 41... hxg4 {[%clk
0:01:16.8]} 42. axb6 {[%clk 0:00:36.8]} 42... axb6 {[%clk 0:01:16.6]} 43. Rb1
{[%clk 0:00:36.7]} 43... e2 {[%clk 0:01:14.7]} 44. Re1 {[%clk 0:00:34.1]} 44...
f3 {[%clk 0:01:14.8]} 45. gxf3 {[%clk 0:00:34.2]} 45... gxf3 {[%clk 0:01:15.7]}
0-1

[Event "Early-Titled-Tuesday-Blitz-July-09-2024"]
[Site "Chess.com"]
[Date "2024.07.09"]
[Round "5"]
[White "2Coaches1Profile"]
[Black "KhBegmuratov"]
[Result "0-1"]
[WhiteElo "2589"]
[BlackElo "2905"]
[TimeControl "180+1"]
[EndTime "8:57:03 PDT"]
[Termination "KhBegmuratov won on time"]

1. e4 {[%clk 0:03:00]} 1... c5 {[%clk 0:03:00]} 2. c3 {[%clk 0:03:00.2]} 2...
Nf6 {[%clk 0:02:58.5]} 3. e5 {[%clk 0:03:00.2]} 3... Nd5 {[%clk 0:02:59.2]} 4.
Bc4 {[%clk 0:03:01.1]} 4... Nb6 {[%clk 0:02:57.4]} 5. Bb3 {[%clk 0:03:01.3]}
5... d6 {[%clk 0:02:58.1]} 6. exd6 {[%clk 0:03:01.2]} 6... Qxd6 {[%clk
0:02:57.8]} 7. Nf3 {[%clk 0:03:00.8]} 7... c4 {[%clk 0:02:58.4]} 8. Bc2 {[%clk
0:03:00.8]} 8... Nc6 {[%clk 0:02:59.1]} 9. O-O {[%clk 0:03:00.1]} 9... g6 {[%clk
0:02:59.8]} 10. b3 {[%clk 0:02:51.5]} 10... Bg7 {[%clk 0:02:57.6]} 11. Na3
{[%clk 0:02:46.5]} 11... cxb3 {[%clk 0:02:53.2]} 12. axb3 {[%clk 0:02:47.4]}
12... O-O {[%clk 0:02:51.6]} 13. d4 {[%clk 0:02:40.9]} 13... Qc7 {[%clk
0:02:44.3]} 14. Re1 {[%clk 0:02:35.1]} 14... a6 {[%clk 0:02:44.2]} 15. Bg5
{[%clk 0:02:33.9]} 15... h6 {[%clk 0:02:43.4]} 16. Bh4 {[%clk 0:02:31.5]} 16...
Bg4 {[%clk 0:02:42.8]} 17. h3 {[%clk 0:02:31.1]} 17... Bxf3 {[%clk 0:02:42.7]}
18. Qxf3 {[%clk 0:02:32]} 18... e6 {[%clk 0:02:40]} 19. Bg3 {[%clk 0:02:23]}
19... Qd7 {[%clk 0:02:35.2]} 20. h4 {[%clk 0:02:23.1]} 20... h5 {[%clk 0:02:35]}
21. Bf4 {[%clk 0:02:06.7]} 21... Nd5 {[%clk 0:02:33.6]} 22. Bd2 {[%clk 0:02:07]}
22... b5 {[%clk 0:02:28.8]} 23. g4 {[%clk 0:02:00.2]} 23... hxg4 {[%clk
0:02:27.7]} 24. Qxg4 {[%clk 0:02:01.1]} 24... Nf6 {[%clk 0:02:26.4]} 25. Qf3
{[%clk 0:01:58.8]} 25... Rac8 {[%clk 0:02:25.4]} 26. Bg5 {[%clk 0:01:57.9]}
26... Qd5 {[%clk 0:02:20.4]} 27. Qxd5 {[%clk 0:01:44.5]} 27... Nxd5 {[%clk
0:02:19.8]} 28. Nb1 {[%clk 0:01:44.9]} 28... Nxd4 {[%clk 0:02:19.4]} 29. cxd4
{[%clk 0:01:37.4]} 29... Rxc2 {[%clk 0:02:19.1]} 30. Rxa6 {[%clk 0:01:36.9]}
30... Bxd4 {[%clk 0:02:19]} 31. Nd2 {[%clk 0:01:31]} 31... Rfc8 {[%clk
0:02:09.7]} 32. Ne4 {[%clk 0:01:08.8]} 32... Rb2 {[%clk 0:02:08.5]} 33. Rd1
{[%clk 0:01:07.1]} 33... Be5 {[%clk 0:02:07.7]} 34. Re1 {[%clk 0:00:38]} 34...
Kg7 {[%clk 0:02:01.6]} 35. Ra7 {[%clk 0:00:36.9]} 35... Bd4 {[%clk 0:01:53.1]}
36. Rb7 {[%clk 0:00:35.8]} 36... Rcc2 {[%clk 0:01:52.7]} 37. Rf1 {[%clk
0:00:20.7]} 37... Rxb3 {[%clk 0:01:52.8]} 38. Nd6 {[%clk 0:00:20.3]} 38... Rg3+
{[%clk 0:01:51.3]} 39. Kh1 {[%clk 0:00:18]} 39... Rf3 {[%clk 0:01:51.7]} 40.
Nxb5 {[%clk 0:00:06.2]} 40... Be5 {[%clk 0:01:48.5]} 41. Kg2 {[%clk 0:00:03.2]}
41... Rg3+ {[%clk 0:01:48.7]} 42. Kh1 {[%clk 0:00:02.6]} 42... Rb3 {[%clk
0:01:48.4]} 43. Nd6 {[%clk 0:00:02.3]} 43... Rh3+ {[%clk 0:01:43.7]} 44. Kg2
{[%clk 0:00:02.4]} 44... Rh2+ {[%clk 0:01:44.4]} 45. Kg1 {[%clk 0:00:02.9]}
45... Bxd6 {[%clk 0:01:45.3]} 0-1

[Event "Early-Titled-Tuesday-Blitz-July-09-2024"]
[Site "Chess.com"]
[Date "2024.07.09"]
[Round "5"]
[White "brm72"]
[Black "Alexander_Donchenko"]
[Result "1/2-1/2"]
[WhiteElo "2677"]
[BlackElo "2898"]
[TimeControl "180+1"]
[EndTime "8:57:03 PDT"]
[Termination "Game drawn by repetition"]

1. e4 {[%clk 0:03:00.9]} 1... c6 {[%clk 0:03:00.2]} 2. d4 {[%clk 0:03:00.4]}
2... d5 {[%clk 0:03:01.1]} 3. e5 {[%clk 0:02:59.8]} 3... Bf5 {[%clk 0:03:01.3]}
4. Nf3 {[%clk 0:02:59.8]} 4... e6 {[%clk 0:03:02]} 5. Be2 {[%clk 0:03:00.2]}
5... Ne7 {[%clk 0:03:02.6]} 6. O-O {[%clk 0:03:00.7]} 6... h6 {[%clk 0:03:03.2]}
7. Be3 {[%clk 0:02:59.3]} 7... Nd7 {[%clk 0:03:03.7]} 8. a4 {[%clk 0:02:59.9]}
8... Bh7 {[%clk 0:03:04.1]} 9. a5 {[%clk 0:03:00.2]} 9... Nf5 {[%clk 0:03:04.5]}
10. a6 {[%clk 0:02:57.9]} 10... b6 {[%clk 0:03:03.4]} 11. Nbd2 {[%clk
0:02:57.4]} 11... Be7 {[%clk 0:03:01.9]} 12. c4 {[%clk 0:02:57.2]} 12... O-O
{[%clk 0:03:00.2]} 13. cxd5 {[%clk 0:02:52.7]} 13... cxd5 {[%clk 0:03:00.5]} 14.
Qb3 {[%clk 0:02:52.1]} 14... Rc8 {[%clk 0:02:59.9]} 15. Rac1 {[%clk 0:02:48.3]}
15... Nb8 {[%clk 0:02:59.9]} 16. Bb5 {[%clk 0:02:46.8]} 16... Nxe3 {[%clk
0:02:49]} 17. fxe3 {[%clk 0:02:47.7]} 17... Rc7 {[%clk 0:02:42.7]} 18. Rc3
{[%clk 0:02:41.1]} 18... Rxc3 {[%clk 0:02:36.9]} 19. Qxc3 {[%clk 0:02:42]} 19...
f6 {[%clk 0:02:26.3]} 20. Rc1 {[%clk 0:02:31.7]} 20... fxe5 {[%clk 0:02:18.9]}
21. Nxe5 {[%clk 0:02:24.1]} 21... Bd6 {[%clk 0:02:19]} 22. Ndf3 {[%clk
0:02:22.9]} 22... Be4 {[%clk 0:02:17.8]} 23. Qd2 {[%clk 0:01:58.4]} 23... Qf6
{[%clk 0:02:11.3]} 24. Rf1 {[%clk 0:01:53.5]} 24... Qe7 {[%clk 0:02:03.8]} 25.
h3 {[%clk 0:01:44.7]} 25... Rc8 {[%clk 0:02:01.2]} 26. Rc1 {[%clk 0:01:43.9]}
26... Rf8 {[%clk 0:01:50.9]} 27. Rf1 {[%clk 0:01:42.6]} 27... Bb4 {[%clk
0:01:49.2]} 28. Qe2 {[%clk 0:01:39.4]} 28... Rc8 {[%clk 0:01:49]} 29. Nd3 {[%clk
0:01:04.5]} 29... Bd6 {[%clk 0:01:46.8]} 30. Nfe5 {[%clk 0:01:01.5]} 30... Bxe5
{[%clk 0:01:39.9]} 31. Nxe5 {[%clk 0:00:58]} 31... Rc2 {[%clk 0:01:39.2]} 32.
Qg4 {[%clk 0:00:50.3]} 32... Rxg2+ {[%clk 0:01:37.6]} 33. Qxg2 {[%clk
0:00:51.2]} 33... Bxg2 {[%clk 0:01:38.4]} 34. Kxg2 {[%clk 0:00:52.1]} 34... Qb4
{[%clk 0:01:36.1]} 35. Be8 {[%clk 0:00:42.1]} 35... Nxa6 {[%clk 0:01:14.6]} 36.
Bf7+ {[%clk 0:00:39.2]} 36... Kh8 {[%clk 0:01:14.1]} 37. Ng6+ {[%clk 0:00:26.3]}
37... Kh7 {[%clk 0:01:14.2]} 38. Nf8+ {[%clk 0:00:23.7]} 38... Kh8 {[%clk
0:01:05.7]} 39. Ng6+ {[%clk 0:00:23.4]} 39... Kh7 {[%clk 0:01:06.2]} 40. Nf8+
{[%clk 0:00:23.5]} 40... Kh8 {[%clk 0:01:07.1]} 41. Ng6+ {[%clk 0:00:22.4]}
1/2-1/2